bitfinex-derivatives/quotes_SOLF0:USTF0_20241101
["timestamp","ask_amount","ask_price","bid_price","bid_amount"]
[1730482292594,14.37367697,166.79,166.7,4.12]
[1730482292791,2.9992,166.76,166.7,4.12]
[1730482292986,14.37367697,166.81,166.74,2.9994]
[1730482293604,14.37367697,166.81,166.7,4.12]
[1730482293791,14.37367697,166.81,166.76,2.999]
[1730482294294,2.9986,166.79,166.76,2.999]
[1730482294701,2.9983,166.8,166.77,2.9987]
[1730482295793,2.9985,166.79,166.76,2.9989]
[1730482295993,2.9985,166.79,166.72,14.37367697]
[1730482296204,14.37367697,166.81,166.72,14.37367697]
[1730482296593,2.9984,166.8,166.77,2.9988]
[1730482296801,14.37367697,166.83,166.72,14.37367697]
[1730482296996,14.37367697,166.83,166.73,1.3212]
[1730482297997,2.9983,166.8,166.77,2.9987]
[1730482298202,2.9983,166.8,166.73,1.3212]
[1730482299200,2.9983,166.8,166.77,2.9987]
[1730482299601,2.9983,166.8,166.73,1.3212]
[1730482299802,2.9983,166.8,166.75,2.9992]
[1730482300099,2.9983,166.8,166.73,1.3212]
[1730482300497,14.37367697,166.83,166.77,2.9987]
[1730482300695,2.9985,166.79,166.73,1.3212]
[1730482301495,2.9984,166.8,166.77,2.9988]
[1730482301697,14.37367697,166.83,166.73,1.3212]
[1730482302099,2.9981,166.81,166.73,1.3212]
[1730482302501,2.9985,166.79,166.76,2.9989]
[1730482302705,14.37367697,166.83,166.73,1.3212]
[1730482303505,2.9984,166.8,166.77,2.9987]
[1730482304407,2.9984,166.8,166.73,1.3212]
[1730482304611,2.9981,166.81,166.78,2.9985]
[1730482305607,2.9977,166.84,166.76,18.49367697]
[1730482305800,2.9977,166.84,166.77,1.3327]
[1730482306001,2.9977,166.84,166.81,2.998]
[1730482306399,2.9974,166.85,166.77,1.3327]
[1730482306599,14.37367697,166.88,166.77,1.3327]
[1730482307096,59.96698713,166.9,166.85,2.9972]
[1730482307307,59.96698713,166.9,166.82,4.12]
[1730482307601,2.3085,166.94,166.82,4.12]
[1730482307602,14.37367697,166.92,166.86,2.9971]
[1730482308401,14.37367697,166.92,166.82,5.4339]
[1730482308601,14.37367697,166.92,166.87,2.997]
[1730482309104,2.9967,166.9,166.87,2.997]
[1730482310408,14.37367697,166.9,166.82,5.4339]
[1730482310604,14.37367697,166.88,166.82,4.12]
[1730482311797,14.37367697,166.88,166.82,7.1179]
[1730482312009,14.37367697,166.86,166.82,4.12]
[1730482312214,14.37367697,166.86,166.78,4.12]
[1730482313504,14.37367697,166.86,166.8,2.9983]
[1730482314314,2.998,166.82,166.8,2.9983]
[1730482314503,2.998,166.82,166.78,4.12]
[1730482314703,2.998,166.82,166.79,2.9984]
[1730482315917,2.998,166.82,166.78,4.12]
[1730482316104,14.37367697,166.88,166.78,4.12]
[1730482316510,14.37367697,166.88,166.81,2.998]
[1730482317112,2.9979,166.83,166.78,4.12]
[1730482317813,14.37367697,166.88,166.76,4.12]
[1730482317814,14.37367697,166.86,166.76,4.12]
[1730482318211,14.37367697,166.86,166.75,15.75737697]
[1730482318212,2.9981,166.82,166.78,2.9987]
[1730482318411,14.37367697,166.86,166.78,2.9987]
[1730482319011,14.37367697,166.86,166.77,4.12]
[1730482319211,14.37367697,166.88,166.8,2.9982]
[1730482319411,2.9977,166.84,166.77,18.49367697]
[1730482319612,14.37367697,166.88,166.8,2.9982]
[1730482320014,14.37367697,166.88,166.77,18.49367697]
[1730482320411,14.37367697,166.88,166.82,2.9979]
[1730482320613,14.37367697,166.88,166.77,18.49367697]
[1730482322005,14.37367697,166.85,166.77,4.12]
[1730482322804,2.9982,166.81,166.78,2.9985]
[1730482323018,14.37367697,166.85,166.77,4.12]
[1730482323315,14.37367697,166.83,166.76,4.12]
[1730482324118,14.37367697,166.85,166.76,4.12]
[1730482324429,14.37367697,166.87,166.77,14.37367697]
[1730482324623,14.37367697,166.84,166.77,2.9988]
[1730482325224,14.37367697,166.78,166.7,3.0001]
[1730482325520,5.9958,166.83,166.67,14.37367697]
[1730482325521,14.37367697,166.76,166.69,4.12]
[1730482325722,14.37367697,166.76,166.67,1.2864]
[1730482325922,14.37367697,166.76,166.68,4.12]
[1730482326121,2.9995,166.74,166.67,1.2864]
[1730482326322,14.37367697,166.73,166.67,5.4064]
[1730482326914,3.0002,166.7,166.67,5.4064]
[1730482327418,14.37367697,166.75,166.67,5.4064]
[1730482328025,2.9992,166.75,166.71,2.9998]
[1730482328320,14.37367697,166.78,166.71,2.9998]
[1730482328516,2.999,166.76,166.71,2.9998]
[1730482328717,14.37367697,166.78,166.71,2.9998]
[1730482328917,14.37367697,166.78,166.67,19.78007697]
[1730482329123,2.9996,166.73,166.7,3.0]
[1730482329734,2.9996,166.73,166.67,5.4064]
[1730482330229,2.9995,166.74,166.67,5.4064]
[1730482330423,14.37367697,166.76,166.69,3.0002]
[1730482330722,14.37367697,166.76,166.67,5.4064]
[1730482330919,2.9996,166.73,166.69,3.0001]
[1730482331120,14.37367697,166.76,166.69,3.0001]
[1730482331322,2.9997,166.73,166.69,3.0001]
[1730482331520,14.37367697,166.8,166.69,14.37367697]
[1730482331916,2.9987,166.78,166.69,14.37367697]
[1730482332118,14.37367697,166.8,166.75,2.9991]
[1730482332313,2.9986,166.79,166.74,4.1]
[1730482332721,14.37367697,166.8,166.75,2.999]
[1730482332919,14.37367697,166.8,166.74,4.1]
[1730482333623,2.9986,166.79,166.74,4.1]
[1730482333924,14.37367697,166.8,166.74,4.1]
[1730482334134,2.9985,166.8,166.74,4.1]
[1730482334427,14.37367697,166.82,166.74,4.1]
[1730482334922,2.9984,166.8,166.76,2.9989]
[1730482335225,14.37367697,166.82,166.76,2.9989]
[1730482335418,14.37367697,166.82,166.75,2.999]
[1730482335825,14.37367697,166.8,166.74,4.1]
[1730482337419,14.37367697,166.86,166.75,14.37367697]
[1730482338032,2.7204,166.87,166.75,14.37367697]
[1730482338033,1.3328,166.87,166.77,14.37367697]
[1730482338219,14.37367697,166.9,166.76,1.276]
[1730482338423,14.37367697,166.9,166.79,14.37367697]
[1730482338622,2.9973,166.86,166.82,2.9979]
[1730482339729,2.9973,166.86,166.8,4.1]
[1730482339916,2.9973,166.86,166.83,2.9976]
[1730482340117,1.3436,166.91,166.81,14.37367697]
[1730482340922,1.3436,166.91,166.8,4.1]
[1730482340923,14.37367697,166.9,166.8,4.1]
[1730482341123,14.37367697,166.9,166.81,2.998]
[1730482341857,14.37367697,166.86,166.76,1.276]
[1730482342031,2.9986,166.79,166.76,5.376]
[1730482342224,14.37367697,166.84,166.76,5.376]
[1730482342535,2.9985,166.79,166.76,5.376]
[1730482342830,14.37367697,166.84,166.76,5.376]
[1730482342831,14.37367697,166.84,166.76,4.1]
[1730482343035,15.67947697,166.84,166.75,2.9991]
[1730482343334,16.72407697,166.84,166.75,7.0991]
[1730482343535,14.37367697,166.81,166.75,4.1]
[1730482343736,2.999,166.76,166.75,4.1]
[1730482344031,2.999,166.76,166.73,4.1]
[1730482344237,14.37367697,166.81,166.73,4.1]
[1730482344630,14.37367697,166.81,166.74,2.9994]
[1730482344833,2.9988,166.77,166.74,2.9994]
[1730482345930,2.9988,166.77,166.73,7.0995]
[1730482346134,14.37367697,166.8,166.73,4.1]
[1730482346529,14.37367697,166.8,166.73,7.0994]
[1730482346939,14.37367697,166.8,166.73,4.1]
[1730482347133,2.9993,166.75,166.73,4.1]
[1730482348733,2.999,166.77,166.74,2.9993]
[1730482349233,14.37367697,166.8,166.68,16.91757697]
[1730482349437,14.37367697,166.8,166.71,4.1]
[1730482350236,2.9995,166.74,166.71,7.0998]
[1730482350436,14.37367697,166.8,166.71,4.1]
[1730482350741,2.9987,166.78,166.75,2.9991]
[1730482350942,2.9987,166.78,166.71,4.1]
[1730482351236,14.37367697,166.82,166.71,4.1]
[1730482352340,2.9989,166.77,166.73,2.9994]
[1730482352937,2.9993,166.75,166.72,2.9997]
[1730482353129,14.37367697,166.79,166.71,4.1]
[1730482353748,2.9991,166.76,166.72,2.9996]
[1730482354131,14.37367697,166.79,166.72,2.9996]
[1730482354434,2.9992,166.75,166.72,2.9996]
[1730482355239,2.9988,166.78,166.71,4.1]
[1730482355432,14.37367697,166.81,166.71,4.1]
[1730482355738,14.37367697,166.81,166.73,2.9994]
[1730482355932,14.37367697,166.81,166.71,4.1]
[1730482356339,14.37367697,166.75,166.69,4.1]
[1730482356643,14.37367697,166.75,166.65,4.1]
[1730482356843,3.0001,166.7,166.67,3.0005]
[1730482357141,1.3376,166.74,166.65,4.1]
[1730482357439,1.3376,166.74,166.66,4.1]
[1730482357846,3.0,166.71,166.68,3.0004]
[1730482358234,14.37367697,166.73,166.66,4.1]
[1730482358439,14.37367697,166.67,166.59,3.9333]
[1730482358638,14.37367697,166.65,166.57,4.1]
[1730482358829,14.37367697,166.65,166.54,60.59082406]
[1730482358830,3.0022,166.59,166.55,57.36012863]
[1730482359041,14.37367697,166.6,166.54,5.4563]
[1730482359337,14.37367697,166.6,166.49,3.0408]
[1730482359338,3.0031,166.54,166.49,3.0038]
[1730482359536,14.37367697,166.58,166.48,4.1]
[1730482359943,3.0026,166.57,166.52,3.0032]
[1730482360138,14.37367697,166.6,166.48,4.1]
[1730482360543,3.0024,166.58,166.52,3.0032]
[1730482361045,14.37367697,166.6,166.5,14.37367697]
[1730482361345,14.37367697,166.6,166.51,1.2842]
[1730482362039,14.37367697,166.62,166.52,14.37367697]
[1730482362243,14.37367697,166.62,166.51,1.2842]
[1730482362443,3.0023,166.58,166.51,1.2842]
[1730482362837,23.07466815,166.62,166.51,1.2842]
[1730482363148,23.07466815,166.62,166.55,3.0027]
[1730482363149,3.002,166.6,166.55,3.0027]
[1730482363344,1.3376,166.64,166.55,4.1]
[1730482363545,1.3376,166.64,166.57,3.0023]
[1730482363943,3.0016,166.62,166.57,3.0023]
[1730482364356,1.3376,166.64,166.57,3.0023]
[1730482364545,3.0015,166.63,166.57,3.0023]
[1730482365249,1.3376,166.64,166.55,4.1]
[1730482365250,23.07466815,166.65,166.55,4.1]
[1730482365450,23.07466815,166.69,166.56,2.6026]
[1730482365645,23.07466815,166.66,166.56,2.6026]
[1730482365947,3.0014,166.63,166.56,5.6051]
[1730482366244,23.07466815,166.66,166.56,1.2732]
[1730482366454,23.07466815,166.66,166.55,4.1]
[1730482366646,3.002,166.6,166.56,3.0026]
[1730482366843,23.07466815,166.66,166.55,4.1]
[1730482367042,3.002,166.6,166.55,7.1027]
[1730482367246,3.002,166.6,166.55,4.1]
[1730482367544,23.07466815,166.66,166.55,4.1]
[1730482368353,23.07466815,166.66,166.57,3.0023]
[1730482368354,3.0014,166.63,166.57,3.0023]
[1730482368652,3.0014,166.63,166.55,4.1]
[1730482368653,23.07466815,166.66,166.55,4.1]
[1730482369040,3.0014,166.63,166.59,3.002]
[1730482369245,23.07466815,166.66,166.55,4.1]
[1730482369440,23.07466815,166.6,166.45,77.46114132]
[1730482369639,23.07466815,166.69,166.48,7.104]
[1730482369640,3.0036,166.51,166.48,7.104]
[1730482369848,23.07466815,166.58,166.48,4.1]
[1730482370249,3.0029,166.55,166.51,3.0034]
[1730482370448,23.07466815,166.58,166.51,3.0034]
[1730482370653,23.07466815,166.58,166.49,4.1]
[1730482370849,3.0031,166.54,166.5,3.0036]
[1730482371053,3.0031,166.54,166.49,4.1]
[1730482371255,23.07466815,166.58,166.49,4.1]
[1730482371457,3.0027,166.56,166.52,3.0032]
[1730482371755,1.3531,166.59,166.49,4.1]
[1730482372142,3.0025,166.57,166.53,3.0031]
[1730482372343,3.0025,166.57,166.49,4.1]
[1730482372555,23.07466815,166.61,166.49,4.1]
[1730482372857,3.0022,166.59,166.55,3.0026]
[1730482373457,3.0022,166.59,166.56,3.0026]
[1730482373656,1.298,166.62,166.56,3.0026]
[1730482373957,1.298,166.62,166.55,4.1]
[1730482373958,23.07466815,166.66,166.6,3.0019]
[1730482374157,1.375,166.68,166.56,1.2757]
[1730482374358,1.375,166.68,166.56,26.89316815]
[1730482374657,29.49986815,166.72,166.56,26.89316815]
[1730482374854,3.0006,166.67,166.56,26.89316815]
[1730482375057,29.49986815,166.72,166.56,26.89316815]
[1730482375455,23.07466815,166.69,166.6,3.0018]
[1730482375660,23.07466815,166.69,166.61,4.1]
[1730482376051,23.07466815,166.69,166.62,3.0014]
[1730482376455,23.07466815,166.69,166.61,4.1]
[1730482376656,3.0011,166.65,166.61,7.1017]
[1730482377951,3.0011,166.65,166.56,26.89316815]
[1730482377952,3.0017,166.62,166.58,3.0022]
[1730482378255,23.07466815,166.66,166.57,4.1]
[1730482379158,3.0013,166.64,166.58,3.0022]
[1730482379364,23.07466815,166.66,166.58,3.0022]
[1730482379860,3.0016,166.62,166.58,3.0022]
[1730482380061,23.07466815,166.66,166.58,3.0022]
[1730482380256,23.07466815,166.66,166.56,1.2757]
[1730482380562,23.07466815,166.69,166.55,4.1]
[1730482380563,23.07466815,166.63,166.55,4.1]
[1730482381862,23.07466815,166.69,166.55,4.1]
[1730482382061,3.0012,166.65,166.61,3.0016]
[1730482382258,24.41666815,166.69,166.56,3.9126]
[1730482382665,23.07466815,166.66,166.56,3.9126]
[1730482383357,23.07466815,166.66,166.56,1.2829]
[1730482383561,23.07466815,166.64,166.55,4.1]
[1730482383765,4.1,166.66,166.5,2.6609]
[1730482383766,23.07466815,166.61,166.5,2.6609]
[1730482383975,23.07466815,166.58,166.46,28.53916815]
[1730482384266,3.0029,166.55,166.51,3.0034]
[1730482384668,3.0029,166.55,166.46,29.82806815]
[1730482384863,3.0029,166.55,166.51,3.0034]
[1730482385258,3.0033,166.53,166.46,25.72806815]
[1730482385460,23.07466815,166.58,166.46,2.6534]
[1730482385663,23.07466815,166.55,166.46,2.6534]
[1730482386067,23.07466815,166.58,166.46,2.6534]
[1730482386267,3.0037,166.5,166.46,4.1]
[1730482386761,3.0029,166.55,166.46,4.1]
[1730482386959,23.07466815,166.58,166.46,4.1]
[1730482387164,23.07466815,166.58,166.49,3.0037]
[1730482387360,3.0031,166.54,166.46,4.1]
[1730482387770,23.07466815,166.58,166.46,4.1]
[1730482387969,3.0027,166.56,166.46,27.17466815]
[1730482388168,28.44646815,166.6,166.46,27.17466815]
[1730482388363,3.0024,166.58,166.54,3.0029]
[1730482388673,24.34646815,166.6,166.52,4.1]
[1730482388858,24.34646815,166.6,166.52,7.1033]
[1730482389063,24.34646815,166.6,166.52,4.1]
[1730482389265,24.34646815,166.6,166.5,2.5674]
[1730482389464,3.0029,166.55,166.51,3.0035]
[1730482389659,24.34646815,166.6,166.5,6.6674]
[1730482389873,25.46486815,166.63,166.5,6.6674]
[1730482390071,23.07466815,166.66,166.51,23.07466815]
[1730482390273,23.07466815,166.66,166.52,1.2614]
[1730482390578,3.0018,166.61,166.52,1.2614]
[1730482390868,23.07466815,166.66,166.52,1.2614]
[1730482391073,23.07466815,166.66,166.59,3.0019]
[1730482391074,3.0014,166.63,166.59,3.0019]
[1730482391477,2.67,166.68,166.58,4.08]
[1730482392061,23.07466815,166.66,166.58,4.08]
[1730482392474,2.67,166.68,166.58,4.08]
[1730482393875,3.001,166.65,166.62,3.0015]
[1730482394068,2.67,166.68,166.58,4.08]
[1730482394273,23.07466815,166.71,166.58,4.08]
[1730482394472,3.0005,166.68,166.64,3.001]
[1730482394769,4.08,166.74,166.59,2.5937]
[1730482394770,23.07466815,166.74,166.59,25.66836815]
[1730482395479,23.07466815,166.71,166.59,25.66836815]
[1730482396275,23.07466815,166.71,166.6,1.2843]
[1730482397274,23.07466815,166.75,166.6,1.2843]
[1730482397671,23.07466815,166.75,166.62,23.07466815]
[1730482398071,3.0001,166.71,166.67,3.0006]
[1730482399872,3.0001,166.71,166.68,3.0005]
[1730482400483,3.7052,166.76,166.66,4.08]
[1730482400484,2.9991,166.76,166.72,2.9997]
[1730482400678,2.9991,166.76,166.66,4.08]
[1730482400679,23.07466815,166.8,166.67,25.68806815]
[1730482401080,23.07466815,166.77,166.67,2.6134]
[1730482401685,23.07466815,166.77,166.61,23.07466815]
[1730482401897,23.07466815,166.71,166.62,4.08]
[1730482402383,23.07466815,166.71,166.64,3.0011]
[1730482402384,3.0006,166.68,166.64,3.0011]
[1730482403284,24.43676815,166.74,166.64,3.0011]
[1730482403586,3.0007,166.67,166.62,4.08]
[1730482403775,3.0007,166.67,166.63,3.0013]
[1730482403978,24.43676815,166.74,166.62,4.08]
[1730482403979,3.0009,166.66,166.62,4.08]
[1730482404578,23.07466815,166.71,166.62,4.08]
[1730482405081,23.07466815,166.71,166.64,3.0012]
[1730482405274,23.07466815,166.71,166.62,4.08]
[1730482405481,24.43676815,166.74,166.66,3.0008]
[1730482405877,3.0,166.71,166.62,4.08]
[1730482406085,3.0,166.71,166.67,3.0005]
[1730482406879,1.3621,166.74,166.67,3.0005]
[1730482407089,24.35646815,166.76,166.67,3.0005]
[1730482407282,2.9995,166.74,166.68,4.08]
[1730482407481,23.07466815,166.79,166.69,4.08]
[1730482407791,23.07466815,166.79,166.7,4.08]
[1730482408183,2.999,166.77,166.71,2.9998]
[1730482408381,23.07466815,166.79,166.71,2.9998]
[1730482408774,2.9993,166.75,166.71,2.9998]
[1730482408975,2.9993,166.75,166.7,4.08]
[1730482409181,23.07466815,166.79,166.7,4.08]
[1730482409398,2.999,166.77,166.7,4.08]
[1730482409574,2.3339,166.8,166.71,2.9999]
[1730482410584,2.9997,166.73,166.7,4.08]
[1730482411292,23.07466815,166.79,166.71,2.9998]
[1730482411486,23.07466815,166.79,166.68,1.3583]
[1730482411786,2.9995,166.74,166.7,3.0]
[1730482411994,23.07466815,166.79,166.69,4.08]
[1730482412384,23.07466815,166.79,166.71,2.9998]
[1730482412584,14.40758031,166.79,166.71,2.9998]
[1730482413281,2.9994,166.74,166.71,2.9998]
[1730482414592,2.9997,166.73,166.69,21.48778031]
[1730482415097,2.9997,166.73,166.7,3.0001]
[1730482415886,14.40758031,166.75,166.63,14.40758031]
[1730482416190,14.40758031,166.7,166.63,4.08]
[1730482416587,14.40758031,166.7,166.59,14.40758031]
[1730482416903,14.40758031,166.66,166.59,4.08]
[1730482417192,3.0018,166.61,166.58,4.08]
[1730482418793,23.06487712,166.66,166.55,1.2617]
[1730482419094,1.041,166.69,166.52,66.26487712]
[1730482419095,23.06487712,166.63,166.52,4.08]
[1730482419292,1.3567,166.62,166.52,4.08]
[1730482419499,3.0027,166.56,166.52,7.0832]
[1730482419686,23.06487712,166.61,166.52,4.08]
[1730482420588,3.0029,166.55,166.52,4.08]
[1730482420988,3.0029,166.55,166.51,3.0035]
[1730482421985,24.10717712,166.61,166.5,4.08]
[1730482422594,3.0028,166.56,166.51,3.0035]
[1730482423203,24.10717712,166.61,166.53,3.0031]
[1730482423204,3.0023,166.58,166.53,3.0031]
[1730482423493,23.06487712,166.61,166.5,4.08]
[1730482424399,23.06487712,166.58,166.5,4.08]
[1730482424888,3.0033,166.53,166.5,4.08]
[1730482425089,4.3970124,166.62,166.44,4.08]
[1730482425090,23.06487712,166.55,166.44,4.08]
[1730482425280,2.7535,166.54,166.43,4.08]
[1730482425490,2.7535,166.54,166.43,7.0849]
[1730482425685,3.7963,166.54,166.43,3.0049]
[1730482426097,3.7963,166.54,166.41,4.08]
[1730482426394,2.7535,166.54,166.43,23.06487712]
[1730482426589,2.7535,166.54,166.44,1.3513]
[1730482426792,2.7535,166.54,166.46,3.0044]
[1730482427390,2.7535,166.54,166.44,1.3513]
[1730482427391,1.3869,166.54,166.44,1.3513]
[1730482427594,3.003,166.54,166.45,25.76077712]
[1730482427993,1.0428,166.58,166.45,25.76077712]
[1730482428297,24.10767712,166.58,166.45,25.76077712]
[1730482428504,23.06487712,166.58,166.45,25.76077712]
[1730482428889,3.0029,166.55,166.45,25.76077712]
[1730482429288,6.7402,166.6,166.45,25.76077712]
[1730482429490,3.0026,166.56,166.48,23.06487712]
[1730482429693,3.0026,166.56,166.49,4.08]
[1730482429894,3.0026,166.56,166.51,3.0035]
[1730482430894,6.7402,166.6,166.5,3.0037]
[1730482431096,23.06487712,166.59,166.49,4.08]
[1730482431298,23.06487712,166.59,166.45,25.76077712]
[1730482431503,3.0033,166.53,166.47,4.08]
[1730482432503,3.0033,166.53,166.49,3.0038]
[1730482432805,6.7402,166.6,166.47,4.08]
[1730482433105,6.7402,166.6,166.52,3.0033]
[1730482433294,23.06487712,166.56,166.29,17.97]
[1730482433599,23.06487712,166.56,166.43,26.06967712]
[1730482433798,23.06487712,166.56,166.4,23.06487712]
[1730482434192,23.06487712,166.56,166.44,3.0046]
[1730482434393,7.0476,166.57,166.43,4.08]
[1730482434696,1.0426,166.57,166.43,27.14487712]
[1730482434900,1.0426,166.57,166.46,3.0043]
[1730482435102,23.06487712,166.56,166.46,3.0043]
[1730482435405,23.06487712,166.56,166.47,3.0042]
[1730482435606,1.0426,166.57,166.45,1.3429]
[1730482435902,23.06487712,166.58,166.45,2.7058]
[1730482436107,23.06487712,166.58,166.46,23.06487712]
[1730482436908,3.0031,166.54,166.5,3.0036]
[1730482437206,3.0031,166.54,166.46,23.06487712]
[1730482437207,3.0031,166.54,166.49,4.08]
[1730482437811,23.06487712,166.58,166.45,2.7058]
[1730482438105,3.0035,166.52,166.46,4.08]
[1730482438310,23.06487712,166.56,166.46,4.08]
[1730482438509,3.0037,166.5,166.47,3.0042]
[1730482438906,23.06487712,166.56,166.46,4.08]
[1730482439309,3.0035,166.52,166.46,4.08]
[1730482439810,23.06487712,166.56,166.46,4.08]
[1730482440405,3.0035,166.52,166.48,3.0039]
[1730482440815,23.06487712,166.56,166.46,4.08]
[1730482440998,3.004,166.49,166.46,7.0844]
[1730482441308,23.06487712,166.56,166.46,4.08]
[1730482441704,3.0033,166.53,166.49,3.0037]
[1730482441909,3.0033,166.53,166.46,4.08]
[1730482442802,23.06487712,166.56,166.46,4.08]
[1730482444019,3.0038,166.5,166.47,3.0041]
[1730482444911,23.06487712,166.56,166.46,4.08]
[1730482445412,3.0033,166.53,166.5,3.0036]
[1730482446212,23.06487712,166.58,166.46,4.08]
[1730482446720,3.0031,166.54,166.5,3.0035]
[1730482446903,14.42750122,166.54,166.46,4.08]
[1730482447216,3.0039,166.5,166.47,3.0042]
[1730482447415,14.42750122,166.54,166.46,4.08]
[1730482447713,17.08770122,166.6,166.46,7.0844]
[1730482447714,3.0037,166.51,166.46,7.0844]
[1730482447914,14.42750122,166.52,166.46,7.0844]
[1730482448213,14.42750122,166.52,166.41,18.50750122]
[1730482448418,3.0044,166.47,166.44,3.0048]
[1730482448611,14.42750122,166.5,166.41,5.4085]
[1730482449117,4.08,166.55,166.41,19.83600122]
[1730482449118,14.42750122,166.52,166.41,19.83600122]
[1730482449627,14.42750122,166.52,166.44,3.0047]
[1730482450321,14.42750122,166.47,166.41,5.4085]
[1730482450903,3.0043,166.47,166.44,3.0048]
[1730482451307,3.0048,166.44,166.41,4.08]
[1730482451503,3.0048,166.44,166.28,12.0306]
[1730482451504,23.07454817,166.43,166.29,23.07454817]
[1730482451710,23.07454817,166.43,166.32,2.699]
[1730482451924,23.07454817,166.4,166.34,3.0065]
[1730482452218,23.07454817,166.4,166.3,1.2864]
[1730482452417,23.07454817,166.4,166.31,4.08]
[1730482453215,23.07454817,166.43,166.31,4.08]
[1730482453422,23.07454817,166.43,166.31,7.01889935]
[1730482453720,27.15454817,166.49,166.31,30.09344752]
[1730482453721,23.07454817,166.45,166.31,30.09344752]
[1730482454610,23.07454817,166.45,166.32,1.10457774]
[1730482454809,23.07454817,166.49,166.32,1.10457774]
[1730482455416,23.07454817,166.49,166.34,23.07454817]
[1730482455617,23.07454817,166.49,166.37,23.07454817]
[1730482455821,1.3889,166.51,166.38,5.3622]
[1730482456016,3.0039,166.49,166.45,3.0045]
[1730482456706,1.3889,166.51,166.38,5.3622]
[1730482456909,1.3889,166.51,166.42,3.005]
[1730482457118,1.3889,166.51,166.38,5.3622]
[1730482457314,3.0048,166.45,166.41,3.0053]
[1730482458508,24.46344817,166.51,166.38,5.3622]
[1730482459217,3.0043,166.47,166.43,3.0048]
[1730482460116,24.46344817,166.51,166.38,5.3622]
[1730482460815,24.46344817,166.51,166.44,3.0048]
[1730482461318,24.46344817,166.51,166.38,5.3622]
[1730482461615,3.004,166.49,166.4,23.07454817]
[1730482461814,23.07454817,166.54,166.4,26.1156034]
[1730482462016,3.7325,166.56,166.42,23.07454817]
[1730482462221,3.7325,166.56,166.5,3.0036]
[1730482462522,3.7325,166.56,166.47,4.08]
[1730482463024,3.7325,166.56,166.49,3.0038]
[1730482463420,3.7325,166.56,166.47,4.08]
[1730482463614,1.3011,166.56,166.47,4.08]
[1730482464220,3.0033,166.53,166.47,4.08]
[1730482464521,1.3011,166.56,166.47,4.08]
[1730482464714,3.0033,166.53,166.49,3.0038]
[1730482464916,1.3011,166.56,166.49,3.0038]
[1730482466316,3.0035,166.52,166.48,3.0039]
[1730482466523,1.3011,166.56,166.47,4.08]
[1730482466818,1.3011,166.56,166.46,4.08]
[1730482466819,23.07454817,166.54,166.46,4.08]
[1730482467931,3.004,166.49,166.46,7.0844]
[1730482468130,23.07454817,166.52,166.41,4.08]
[1730482468334,23.07454817,166.49,166.41,4.08]
[1730482469315,1.2653,166.53,166.41,4.08]
[1730482469720,3.004,166.49,166.46,3.0043]
[1730482470121,23.07454817,166.51,166.41,4.08]
[1730482471815,1.2653,166.53,166.41,4.08]
[1730482472221,3.0038,166.5,166.45,3.0045]
[1730482472425,1.2653,166.53,166.45,3.0045]
[1730482473229,3.0042,166.48,166.45,3.0045]
[1730482473925,3.0046,166.46,166.43,3.0048]
[1730482475025,14.42339102,166.48,166.41,3.0052]
[1730482475330,14.42339102,166.48,166.4,4.08]
[1730482475626,3.0047,166.45,166.42,3.0051]
[1730482475929,14.42339102,166.5,166.4,4.08]
[1730482476621,3.0044,166.47,166.44,3.0046]
[1730482478227,3.0044,166.46,166.44,3.0046]
[1730482478522,3.0044,166.46,166.4,4.08]
[1730482478523,14.42339102,166.5,166.41,7.0852]
[1730482478728,3.0049,166.44,166.41,4.08]
[1730482478922,14.42339102,166.5,166.41,4.08]